[Event "November 21 Late 2023"]
[Site "https://www.chess.com"]
[Date "2023.11.21"]
[Round "9"]
[White "Khismatullin, Denis"]
[Black "Arabidze, Meri"]
[Result "1-0"]
[Board "18"]
[TimeControl "180+1"]
[WhiteFideId "4142578"]
[BlackFideId "13604040"]
[WhiteElo "2552"]
[BlackElo "2416"]
[WhiteTeam "RUS"]
[BlackTeam "GEO"]
[WhiteClock "0:00:19"]
[BlackClock "0:00:00"]

1. e4 {[%clk 0:03:00]}  c5 {[%clk 0:02:59]} 2. Nf3 {[%clk 0:03:00]}  e6 {[%clk 0:03:00]} 3. c3 {[%clk 0:02:59]}  Nf6 {[%clk 0:02:57]} 4. e5 {[%clk 0:02:59]}  Nd5 {[%clk 0:02:57]} 5. Bc4 {[%clk 0:02:59]}  Nb6 {[%clk 0:02:53]} 6. Bb3 {[%clk 0:02:57]}  Nc6 {[%clk 0:02:53]} 7. O-O {[%clk 0:02:56]}  d6 {[%clk 0:02:53]} 8. exd6 {[%clk 0:02:54]}  Bxd6 {[%clk 0:02:54]} 9. d4 {[%clk 0:02:54]}  cxd4 {[%clk 0:02:54]} 10. cxd4 {[%clk 0:02:53]}  O-O {[%clk 0:02:53]} 11. Nc3 {[%clk 0:02:53]}  Ne7 {[%clk 0:02:52]} 12. Ng5 {[%clk 0:02:49]}  h6 {[%clk 0:02:44]} 13. Nge4 {[%clk 0:02:48]}  Nf5 {[%clk 0:02:29]} 14. Be3 {[%clk 0:02:36]}  Nd5 {[%clk 0:02:15]} 15. Qf3 {[%clk 0:02:18]}  Nxc3 {[%clk 0:01:55]} 16. bxc3 {[%clk 0:02:16]}  Bc7 {[%clk 0:01:52]} 17. Rad1 {[%clk 0:02:13]}  Qh4 {[%clk 0:01:43]} 18. g3 {[%clk 0:02:10]}  Qh3 {[%clk 0:01:43]} 19. Qg2 {[%clk 0:01:47]}  Qxg2+ {[%clk 0:01:40]} 20. Kxg2 {[%clk 0:01:48]}  b6 {[%clk 0:01:39]} 21. Bc1 {[%clk 0:01:45]}  Bb7 {[%clk 0:01:39]} 22. f3 {[%clk 0:01:45]}  Rac8 {[%clk 0:01:36]} 23. Rfe1 {[%clk 0:01:41]}  Bb8 {[%clk 0:01:35]} 24. c4 {[%clk 0:01:39]}  Rfd8 {[%clk 0:01:33]} 25. Bb2 {[%clk 0:01:39]}  a6 {[%clk 0:01:27]} 26. a4 {[%clk 0:01:38]}  Nd6 {[%clk 0:01:17]} 27. Nxd6 {[%clk 0:01:23]}  Bxd6 {[%clk 0:01:18]} 28. Rc1 {[%clk 0:01:13]}  Be7 {[%clk 0:01:14]} 29. Red1 {[%clk 0:01:12]}  Bf6 {[%clk 0:01:13]} 30. Kf2 {[%clk 0:01:07]}  Rd7 {[%clk 0:01:10]} 31. Ke3 {[%clk 0:01:03]}  Rcd8 {[%clk 0:01:08]} 32. f4 {[%clk 0:01:02]}  h5 {[%clk 0:01:08]} 33. Rd2 {[%clk 0:00:54]}  g6 {[%clk 0:01:07]} 34. Rcd1 {[%clk 0:00:53]}  Kg7 {[%clk 0:01:06]} 35. Ba3 {[%clk 0:00:52]}  Bc6 {[%clk 0:01:03]} 36. d5 {[%clk 0:00:50]}  exd5 {[%clk 0:01:00]} 37. cxd5 {[%clk 0:00:51]}  Bb7 {[%clk 0:00:52]} 38. d6 {[%clk 0:00:47]}  b5 {[%clk 0:00:44]} 39. axb5 {[%clk 0:00:45]}  axb5 {[%clk 0:00:45]} 40. Bb4 {[%clk 0:00:45]}  Re8+ {[%clk 0:00:40]} 41. Kf2 {[%clk 0:00:44]}  Re4 {[%clk 0:00:41]} 42. Ba5 {[%clk 0:00:36]}  b4 {[%clk 0:00:36]} 43. Ba4 {[%clk 0:00:33]}  Bc8 {[%clk 0:00:27]} 44. Bxd7 {[%clk 0:00:29]}  Bxd7 {[%clk 0:00:28]} 45. Re2 {[%clk 0:00:26]}  Rxe2+ {[%clk 0:00:25]} 46. Kxe2 {[%clk 0:00:25]}  Bg4+ {[%clk 0:00:26]} 47. Kd2 {[%clk 0:00:21]}  Bxd1 {[%clk 0:00:23]} 48. Kxd1 {[%clk 0:00:20]}  b3 {[%clk 0:00:23]} 49. d7 {[%clk 0:00:20]}  g5 {[%clk 0:00:00]} 50. Bc3 {[%clk 0:00:19]} 1-0

[Event "November 21 Late 2023"]
[Site "https://www.chess.com"]
[Date "2023.11.21"]
[Round "9"]
[White "Bjelobrk, Igor"]
[Black "Khamrakulov, Djurabek"]
[Result "1/2-1/2"]
[Board "22"]
[TimeControl "180+1"]
[WhiteFideId "4300726"]
[BlackFideId "14201143"]
[WhiteElo "2319"]
[BlackElo "2535"]
[WhiteTeam "AUS"]
[BlackTeam "UZB"]
[WhiteClock "0:00:13"]
[BlackClock "0:00:15"]

1. d4 {[%clk 0:02:57]}  f5 {[%clk 0:02:59]} 2. Nc3 {[%clk 0:02:52]}  Nf6 {[%clk 0:02:58]} 3. Bg5 {[%clk 0:02:51]}  g6 {[%clk 0:02:57]} 4. Bxf6 {[%clk 0:02:50]}  exf6 {[%clk 0:02:56]} 5. e4 {[%clk 0:02:49]}  fxe4 {[%clk 0:02:55]} 6. Nxe4 {[%clk 0:02:48]}  Bg7 {[%clk 0:02:54]} 7. Nf3 {[%clk 0:02:47]}  Qe7 {[%clk 0:02:50]} 8. Qe2 {[%clk 0:02:43]}  O-O {[%clk 0:02:50]} 9. O-O-O {[%clk 0:02:42]}  d5 {[%clk 0:02:46]} 10. Ng3 {[%clk 0:02:38]}  Qxe2 {[%clk 0:02:44]} 11. Bxe2 {[%clk 0:02:39]}  Nc6 {[%clk 0:02:35]} 12. c3 {[%clk 0:02:38]}  Ne7 {[%clk 0:02:34]} 13. Rde1 {[%clk 0:02:34]}  Nf5 {[%clk 0:02:33]} 14. Bd3 {[%clk 0:02:33]}  Nxg3 {[%clk 0:02:30]} 15. hxg3 {[%clk 0:02:33]}  Bd7 {[%clk 0:02:26]} 16. Re7 {[%clk 0:02:31]}  Rad8 {[%clk 0:02:27]} 17. Rhe1 {[%clk 0:02:03]}  Rf7 {[%clk 0:02:25]} 18. Nd2 {[%clk 0:01:52]}  Rxe7 {[%clk 0:02:21]} 19. Rxe7 {[%clk 0:01:53]}  Bf8 {[%clk 0:02:21]} 20. Re1 {[%clk 0:01:53]}  Kf7 {[%clk 0:02:21]} 21. Nf1 {[%clk 0:01:52]}  Re8 {[%clk 0:02:20]} 22. Rxe8 {[%clk 0:01:52]}  Bxe8 {[%clk 0:02:20]} 23. Ne3 {[%clk 0:01:53]}  c6 {[%clk 0:02:20]} 24. Kd2 {[%clk 0:01:52]}  f5 {[%clk 0:02:16]} 25. f4 {[%clk 0:01:53]}  Bd6 {[%clk 0:02:11]} 26. b4 {[%clk 0:01:52]}  Bd7 {[%clk 0:02:09]} 27. a3 {[%clk 0:01:53]}  Kf6 {[%clk 0:02:09]} 28. Ke2 {[%clk 0:01:53]}  h6 {[%clk 0:02:09]} 29. Kf3 {[%clk 0:01:53]}  g5 {[%clk 0:02:09]} 30. Bc2 {[%clk 0:01:53]}  a5 {[%clk 0:02:07]} 31. Bd3 {[%clk 0:01:53]}  b6 {[%clk 0:02:07]} 32. Bc2 {[%clk 0:01:53]}  Be6 {[%clk 0:02:06]} 33. Bd3 {[%clk 0:01:53]}  c5 {[%clk 0:02:06]} 34. bxa5 {[%clk 0:01:37]}  bxa5 {[%clk 0:02:06]} 35. a4 {[%clk 0:01:37]}  cxd4 {[%clk 0:01:57]} 36. cxd4 {[%clk 0:01:37]}  Bb4 {[%clk 0:01:54]} 37. Bb5 {[%clk 0:01:23]}  Be1 {[%clk 0:01:47]} 38. Nf1 {[%clk 0:01:14]}  Bc3 {[%clk 0:01:41]} 39. Ke3 {[%clk 0:01:14]}  Ke7 {[%clk 0:01:36]} 40. Kd3 {[%clk 0:01:15]}  Be1 {[%clk 0:01:36]} 41. Ke2 {[%clk 0:01:15]}  Bb4 {[%clk 0:01:36]} 42. Ne3 {[%clk 0:01:14]}  Bc3 {[%clk 0:01:36]} 43. Nc2 {[%clk 0:01:08]}  Kf6 {[%clk 0:01:26]} 44. Kd3 {[%clk 0:01:07]}  Bb2 {[%clk 0:01:26]} 45. Ne3 {[%clk 0:01:07]}  Ke7 {[%clk 0:01:15]} 46. Bc6 {[%clk 0:00:59]}  Kd6 {[%clk 0:01:15]} 47. Be8 {[%clk 0:00:59]}  Bc1 {[%clk 0:01:15]} 48. Bg6 {[%clk 0:00:59]}  Bxe3 {[%clk 0:01:14]} 49. Kxe3 {[%clk 0:01:00]}  Bd7 {[%clk 0:01:14]} 50. g4 {[%clk 0:00:31]}  Bxa4 {[%clk 0:01:00]} 51. gxf5 {[%clk 0:00:20]}  Bc2 {[%clk 0:00:51]} 52. fxg5 {[%clk 0:00:19]}  hxg5 {[%clk 0:00:51]} 53. g4 {[%clk 0:00:10]}  Be4 {[%clk 0:00:49]} 54. Kd2 {[%clk 0:00:09]}  Ke7 {[%clk 0:00:49]} 55. Kc3 {[%clk 0:00:10]}  Bf3 {[%clk 0:00:48]} 56. Bh5 {[%clk 0:00:10]}  Bd1 {[%clk 0:00:35]} 57. Kb2 {[%clk 0:00:10]}  Kf6 {[%clk 0:00:34]} 58. Ka3 {[%clk 0:00:11]}  Bc2 {[%clk 0:00:33]} 59. Kb2 {[%clk 0:00:11]}  Bd1 {[%clk 0:00:29]} 60. Ka3 {[%clk 0:00:11]}  Ke7 {[%clk 0:00:28]} 61. Kb2 {[%clk 0:00:12]}  Kd6 {[%clk 0:00:28]} 62. Ka3 {[%clk 0:00:12]}  Kc6 {[%clk 0:00:26]} 63. f6 {[%clk 0:00:11]}  Kd6 {[%clk 0:00:26]} 64. f7 {[%clk 0:00:11]}  Ke7 {[%clk 0:00:26]} 65. Kb2 {[%clk 0:00:11]}  Ba4 {[%clk 0:00:25]} 66. Ka3 {[%clk 0:00:11]}  Bd7 {[%clk 0:00:25]} 67. Kb3 {[%clk 0:00:09]}  Kf8 {[%clk 0:00:25]} 68. Ka3 {[%clk 0:00:09]}  Kg7 {[%clk 0:00:25]} 69. Kb3 {[%clk 0:00:10]}  Bb5 {[%clk 0:00:25]} 70. Ka3 {[%clk 0:00:10]}  Bd7 {[%clk 0:00:14]} 71. Kb3 {[%clk 0:00:10]}  Kf8 {[%clk 0:00:14]} 72. Ka3 {[%clk 0:00:10]}  Ke7 {[%clk 0:00:14]} 73. Kb3 {[%clk 0:00:11]}  Bc6 {[%clk 0:00:14]} 74. Ka3 {[%clk 0:00:11]}  Bb5 {[%clk 0:00:14]} 75. Kb3 {[%clk 0:00:12]}  Bc6 {[%clk 0:00:15]} 76. Ka3 {[%clk 0:00:12]}  Bb5 {[%clk 0:00:15]} 77. Kb3 {[%clk 0:00:13]}  Bc6 {[%clk 0:00:15]} 1/2-1/2

[Event "November 21 Late 2023"]
[Site "https://www.chess.com"]
[Date "2023.11.21"]
[Round "9"]
[White "Ghasi, Ameet K"]
[Black "Erdogan, Anil Berk"]
[Result "1-0"]
[Board "24"]
[TimeControl "180+1"]
[WhiteFideId "409200"]
[BlackFideId "6348173"]
[WhiteElo "2558"]
[BlackElo "2007"]
[WhiteTeam "ENG"]
[BlackTeam "TUR"]
[WhiteClock "0:00:33"]
[BlackClock "0:00:16"]

1. b3 {[%clk 0:03:00]}  e5 {[%clk 0:02:59]} 2. Bb2 {[%clk 0:03:01]}  Nc6 {[%clk 0:03:00]} 3. e3 {[%clk 0:02:58]}  Nf6 {[%clk 0:03:01]} 4. a3 {[%clk 0:02:58]}  a6 {[%clk 0:02:54]} 5. c4 {[%clk 0:02:57]}  d5 {[%clk 0:02:51]} 6. cxd5 {[%clk 0:02:58]}  Nxd5 {[%clk 0:02:52]} 7. b4 {[%clk 0:02:58]}  Be7 {[%clk 0:02:50]} 8. Nf3 {[%clk 0:02:56]}  e4 {[%clk 0:02:43]} 9. Nd4 {[%clk 0:02:44]}  Nxd4 {[%clk 0:02:42]} 10. Bxd4 {[%clk 0:02:45]}  Bf6 {[%clk 0:02:39]} 11. Bxf6 {[%clk 0:02:41]}  Qxf6 {[%clk 0:02:38]} 12. Ra2 {[%clk 0:02:42]}  Be6 {[%clk 0:02:33]} 13. Rc2 {[%clk 0:02:27]}  O-O {[%clk 0:02:28]} 14. Nc3 {[%clk 0:02:25]}  Nxc3 {[%clk 0:02:08]} 15. Rxc3 {[%clk 0:02:26]}  c6 {[%clk 0:01:51]} 16. Qc2 {[%clk 0:02:25]}  Qg6 {[%clk 0:01:47]} 17. g3 {[%clk 0:02:14]}  a5 {[%clk 0:01:44]} 18. b5 {[%clk 0:02:09]}  cxb5 {[%clk 0:01:39]} 19. Bxb5 {[%clk 0:02:10]}  Bh3 {[%clk 0:01:36]} 20. Bf1 {[%clk 0:01:55]}  Bxf1 {[%clk 0:01:12]} 21. Rxf1 {[%clk 0:01:46]}  Qf5 {[%clk 0:01:12]} 22. f3 {[%clk 0:01:45]}  Qh3 {[%clk 0:01:00]} 23. Qxe4 {[%clk 0:01:40]}  Qxh2 {[%clk 0:01:00]} 24. Qh4 {[%clk 0:01:28]}  Qxh4 {[%clk 0:00:57]} 25. gxh4 {[%clk 0:01:29]}  Rac8 {[%clk 0:00:56]} 26. Rxc8 {[%clk 0:01:26]}  Rxc8 {[%clk 0:00:56]} 27. Ke2 {[%clk 0:01:26]}  h5 {[%clk 0:00:40]} 28. Rb1 {[%clk 0:01:26]}  Rc4 {[%clk 0:00:39]} 29. d4 {[%clk 0:01:00]}  Ra4 {[%clk 0:00:38]} 30. Rxb7 {[%clk 0:01:00]}  Rxa3 {[%clk 0:00:38]} 31. d5 {[%clk 0:01:00]}  Ra2+ {[%clk 0:00:17]} 32. Kd3 {[%clk 0:00:59]}  a4 {[%clk 0:00:18]} 33. d6 {[%clk 0:00:49]}  Ra1 {[%clk 0:00:18]} 34. d7 {[%clk 0:00:40]}  Rd1+ {[%clk 0:00:18]} 35. Kc2 {[%clk 0:00:39]}  Rd6 {[%clk 0:00:18]} 36. Rb8+ {[%clk 0:00:39]}  Kh7 {[%clk 0:00:15]} 37. d8=Q {[%clk 0:00:39]}  Rxd8 {[%clk 0:00:15]} 38. Rxd8 {[%clk 0:00:40]}  g5 {[%clk 0:00:16]} 39. hxg5 {[%clk 0:00:38]}  Kg6 {[%clk 0:00:17]} 40. f4 {[%clk 0:00:35]}  Kf5 {[%clk 0:00:16]} 41. Rh8 {[%clk 0:00:35]}  Kg4 {[%clk 0:00:17]} 42. Kb2 {[%clk 0:00:33]}  f6 {[%clk 0:00:16]} 43. gxf6 {[%clk 0:00:33]} 1-0

[Event "November 21 Late 2023"]
[Site "https://www.chess.com"]
[Date "2023.11.21"]
[Round "9"]
[White "Vadim_Galchenko"]
[Black "Skvortsov, Andrei"]
[Result "0-1"]
[Board "25"]
[TimeControl "180+1"]
[BlackFideId "24108600"]
[WhiteElo "2588"]
[BlackElo "2357"]
[BlackTeam "MNE"]
[WhiteClock "0:00:00"]
[BlackClock "0:00:30"]

1. e4 {[%clk 0:03:00]}  d5 {[%clk 0:02:58]} 2. exd5 {[%clk 0:03:00]}  Qxd5 {[%clk 0:02:59]} 3. Nc3 {[%clk 0:03:00]}  Qe5+ {[%clk 0:02:59]} 4. Be2 {[%clk 0:03:00]}  Bg4 {[%clk 0:02:59]} 5. d4 {[%clk 0:03:00]}  Bxe2 {[%clk 0:02:59]} 6. Ngxe2 {[%clk 0:03:01]}  Qa5 {[%clk 0:02:58]} 7. O-O {[%clk 0:03:02]}  Nf6 {[%clk 0:02:58]} 8. b4 {[%clk 0:03:02]}  Qh5 {[%clk 0:02:58]} 9. Qd3 {[%clk 0:03:02]}  e6 {[%clk 0:02:56]} 10. Bf4 {[%clk 0:02:52]}  Bxb4 {[%clk 0:02:52]} 11. Nb5 {[%clk 0:02:46]}  Na6 {[%clk 0:02:46]} 12. Bxc7 {[%clk 0:02:33]}  O-O {[%clk 0:02:44]} 13. Bg3 {[%clk 0:02:27]}  Rfd8 {[%clk 0:02:34]} 14. Rab1 {[%clk 0:02:04]}  Bf8 {[%clk 0:02:30]} 15. Nf4 {[%clk 0:01:48]}  Qh6 {[%clk 0:02:28]} 16. Rfe1 {[%clk 0:01:41]}  Nb4 {[%clk 0:02:24]} 17. Qb3 {[%clk 0:01:35]}  Nbd5 {[%clk 0:02:21]} 18. Nd3 {[%clk 0:01:31]}  a6 {[%clk 0:02:10]} 19. Nc7 {[%clk 0:01:19]}  Rac8 {[%clk 0:02:01]} 20. Nxd5 {[%clk 0:01:18]}  Nxd5 {[%clk 0:01:54]} 21. c4 {[%clk 0:01:17]}  Ne7 {[%clk 0:01:44]} 22. Qxb7 {[%clk 0:00:41]}  Rxc4 {[%clk 0:01:42]} 23. Qxa6 {[%clk 0:00:41]}  Rcxd4 {[%clk 0:01:40]} 24. Ne5 {[%clk 0:00:40]}  Qf6 {[%clk 0:01:30]} 25. a4 {[%clk 0:00:38]}  h5 {[%clk 0:01:28]} 26. Nf3 {[%clk 0:00:30]}  Rd3 {[%clk 0:01:18]} 27. Be5 {[%clk 0:00:29]}  Qf5 {[%clk 0:01:15]} 28. Nh4 {[%clk 0:00:25]}  Qg4 {[%clk 0:01:10]} 29. g3 {[%clk 0:00:25]}  Nf5 {[%clk 0:01:06]} 30. Ng2 {[%clk 0:00:24]}  Ra3 {[%clk 0:00:58]} 31. Ra1 {[%clk 0:00:18]}  Qb4 {[%clk 0:00:49]} 32. Rxa3 {[%clk 0:00:15]}  Qxa3 {[%clk 0:00:50]} 33. Qb5 {[%clk 0:00:13]}  Rd5 {[%clk 0:00:46]} 34. Qb8 {[%clk 0:00:13]}  Qxa4 {[%clk 0:00:45]} 35. Nf4 {[%clk 0:00:13]}  Rb5 {[%clk 0:00:43]} 36. Qe8 {[%clk 0:00:14]}  Qa5 {[%clk 0:00:36]} 37. Nd3 {[%clk 0:00:09]}  Rd5 {[%clk 0:00:32]} 38. Rd1 {[%clk 0:00:00]}  Qa6 {[%clk 0:00:30]} 0-1

[Event "November 21 Late 2023"]
[Site "https://www.chess.com"]
[Date "2023.11.21"]
[Round "9"]
[White "Tologon tegin, Semetei"]
[Black "Nazari, Arad"]
[Result "0-1"]
[Board "26"]
[TimeControl "180+1"]
[WhiteFideId "13800574"]
[BlackFideId "12577324"]
[WhiteElo "2258"]
[BlackElo "2100"]
[WhiteTeam "KGZ"]
[BlackTeam "IRI"]
[WhiteClock "0:00:20"]
[BlackClock "0:00:43"]

1. d4 {[%clk 0:02:51]}  Nf6 {[%clk 0:02:59]} 2. c4 {[%clk 0:02:50]}  g6 {[%clk 0:03:00]} 3. Nc3 {[%clk 0:02:50]}  d5 {[%clk 0:03:01]} 4. cxd5 {[%clk 0:02:49]}  Nxd5 {[%clk 0:03:02]} 5. e4 {[%clk 0:02:50]}  Nxc3 {[%clk 0:03:02]} 6. bxc3 {[%clk 0:02:51]}  Bg7 {[%clk 0:03:03]} 7. Bc4 {[%clk 0:02:51]}  O-O {[%clk 0:03:02]} 8. Ne2 {[%clk 0:02:52]}  c5 {[%clk 0:03:03]} 9. O-O {[%clk 0:02:51]}  Nc6 {[%clk 0:03:04]} 10. Be3 {[%clk 0:02:50]}  Bg4 {[%clk 0:03:04]} 11. f3 {[%clk 0:02:50]}  Bd7 {[%clk 0:03:04]} 12. Rb1 {[%clk 0:02:47]}  cxd4 {[%clk 0:03:05]} 13. cxd4 {[%clk 0:02:47]}  a6 {[%clk 0:03:06]} 14. Qd2 {[%clk 0:02:42]}  b5 {[%clk 0:03:01]} 15. Bd3 {[%clk 0:02:38]}  Rc8 {[%clk 0:02:58]} 16. Rfc1 {[%clk 0:02:36]}  Qa5 {[%clk 0:02:47]} 17. Qb2 {[%clk 0:02:06]}  Rfd8 {[%clk 0:02:40]} 18. e5 {[%clk 0:01:53]}  Be6 {[%clk 0:01:55]} 19. Nf4 {[%clk 0:01:51]}  Bh6 {[%clk 0:01:54]} 20. g3 {[%clk 0:01:19]}  Bxf4 {[%clk 0:01:48]} 21. gxf4 {[%clk 0:01:20]}  Qxa2 {[%clk 0:01:22]} 22. Qxa2 {[%clk 0:01:10]}  Bxa2 {[%clk 0:01:23]} 23. Ra1 {[%clk 0:01:11]}  Bd5 {[%clk 0:01:22]} 24. Kf2 {[%clk 0:01:03]}  Nb4 {[%clk 0:01:20]} 25. Be2 {[%clk 0:00:49]}  Bb7 {[%clk 0:01:08]} 26. f5 {[%clk 0:00:30]}  Nc2 {[%clk 0:00:56]} 27. Ra2 {[%clk 0:00:22]}  Nxe3 {[%clk 0:00:44]} 28. Kxe3 {[%clk 0:00:20]}  Rxc1 {[%clk 0:00:43]} 0-1

[Event "November 21 Late 2023"]
[Site "https://www.chess.com"]
[Date "2023.11.21"]
[Round "9"]
[White "Ozates, Tuna"]
[Black "Demchenko, Anton"]
[Result "0-1"]
[Board "27"]
[TimeControl "180+1"]
[WhiteFideId "6354521"]
[BlackFideId "4160258"]
[WhiteElo "2151"]
[BlackElo "2545"]
[WhiteTeam "TUR"]
[BlackTeam "SLO"]
[WhiteClock "0:00:00"]
[BlackClock "0:00:13"]

1. e4 {[%clk 0:02:58]}  e5 {[%clk 0:02:59]} 2. Nf3 {[%clk 0:02:56]}  Nc6 {[%clk 0:03:00]} 3. Bc4 {[%clk 0:02:56]}  Nf6 {[%clk 0:02:59]} 4. d3 {[%clk 0:02:56]}  h6 {[%clk 0:02:59]} 5. O-O {[%clk 0:02:53]}  d6 {[%clk 0:02:59]} 6. Re1 {[%clk 0:02:48]}  Be7 {[%clk 0:02:54]} 7. d4 {[%clk 0:02:45]}  Bg4 {[%clk 0:02:49]} 8. c3 {[%clk 0:02:39]}  O-O {[%clk 0:02:40]} 9. d5 {[%clk 0:02:18]}  Nb8 {[%clk 0:02:39]} 10. Nbd2 {[%clk 0:02:18]}  c6 {[%clk 0:02:36]} 11. dxc6 {[%clk 0:02:16]}  Nxc6 {[%clk 0:02:31]} 12. h3 {[%clk 0:02:16]}  Bh5 {[%clk 0:02:26]} 13. a4 {[%clk 0:02:16]}  Bg6 {[%clk 0:01:54]} 14. Nh4 {[%clk 0:02:12]}  Bh7 {[%clk 0:01:48]} 15. Nhf3 {[%clk 0:01:30]}  Kh8 {[%clk 0:01:44]} 16. b4 {[%clk 0:01:23]}  a6 {[%clk 0:01:41]} 17. Bd3 {[%clk 0:01:18]}  d5 {[%clk 0:01:39]} 18. Qc2 {[%clk 0:01:13]}  d4 {[%clk 0:01:36]} 19. Ba3 {[%clk 0:01:00]}  Rc8 {[%clk 0:01:32]} 20. b5 {[%clk 0:00:50]}  Nb4 {[%clk 0:01:21]} 21. Bxb4 {[%clk 0:00:46]}  Bxb4 {[%clk 0:01:22]} 22. c4 {[%clk 0:00:47]}  Qe7 {[%clk 0:01:15]} 23. Rab1 {[%clk 0:00:41]}  a5 {[%clk 0:01:09]} 24. Re2 {[%clk 0:00:33]}  Nh5 {[%clk 0:01:07]} 25. g3 {[%clk 0:00:30]}  Nf6 {[%clk 0:01:07]} 26. Kg2 {[%clk 0:00:28]}  b6 {[%clk 0:01:06]} 27. Nb3 {[%clk 0:00:24]}  Nd7 {[%clk 0:01:03]} 28. Nh4 {[%clk 0:00:22]}  Rc7 {[%clk 0:00:57]} 29. Rf1 {[%clk 0:00:22]}  Rfc8 {[%clk 0:00:49]} 30. Nf5 {[%clk 0:00:22]}  Qe6 {[%clk 0:00:42]} 31. f4 {[%clk 0:00:22]}  f6 {[%clk 0:00:42]} 32. Qd1 {[%clk 0:00:15]}  Qe8 {[%clk 0:00:33]} 33. Rc2 {[%clk 0:00:14]}  Qg6 {[%clk 0:00:29]} 34. Kh2 {[%clk 0:00:07]}  Bg8 {[%clk 0:00:29]} 35. Qe2 {[%clk 0:00:06]}  Re8 {[%clk 0:00:23]} 36. Nh4 {[%clk 0:00:06]}  Qh7 {[%clk 0:00:21]} 37. f5 {[%clk 0:00:06]}  Bf7 {[%clk 0:00:21]} 38. g4 {[%clk 0:00:07]}  Qg8 {[%clk 0:00:20]} 39. Nf3 {[%clk 0:00:06]}  Rec8 {[%clk 0:00:19]} 40. Rfc1 {[%clk 0:00:07]}  Bc3 {[%clk 0:00:17]} 41. Rxc3 {[%clk 0:00:06]}  dxc3 {[%clk 0:00:17]} 42. Rxc3 {[%clk 0:00:07]}  Qf8 {[%clk 0:00:17]} 43. h4 {[%clk 0:00:07]}  Qb4 {[%clk 0:00:18]} 44. Qc2 {[%clk 0:00:06]}  Qxa4 {[%clk 0:00:15]} 45. g5 {[%clk 0:00:06]}  Nc5 {[%clk 0:00:14]} 46. gxf6 {[%clk 0:00:04]}  gxf6 {[%clk 0:00:12]} 47. Qd2 {[%clk 0:00:00]}  Kh7 {[%clk 0:00:13]} 0-1

[Event "November 21 Late 2023"]
[Site "https://www.chess.com"]
[Date "2023.11.21"]
[Round "9"]
[White "Shapiro, Viktor"]
[Black "Tactrics"]
[Result "0-1"]
[Board "28"]
[TimeControl "180+1"]
[WhiteFideId "4175700"]
[WhiteElo "2084"]
[BlackElo "2894"]
[WhiteTeam "RUS"]
[WhiteClock "0:00:00"]
[BlackClock "0:00:34"]

1. c4 {[%clk 0:03:00]}  c5 {[%clk 0:02:59]} 2. Nc3 {[%clk 0:03:00]}  b6 {[%clk 0:03:00]} 3. g3 {[%clk 0:03:01]}  Bb7 {[%clk 0:03:00]} 4. e4 {[%clk 0:02:59]}  g6 {[%clk 0:03:00]} 5. Bg2 {[%clk 0:02:59]}  Bg7 {[%clk 0:03:01]} 6. Nge2 {[%clk 0:02:58]}  Nc6 {[%clk 0:03:01]} 7. O-O {[%clk 0:02:58]}  e6 {[%clk 0:03:00]} 8. d3 {[%clk 0:02:58]}  Nge7 {[%clk 0:03:00]} 9. Be3 {[%clk 0:02:58]}  h6 {[%clk 0:03:00]} 10. Qd2 {[%clk 0:02:52]}  d6 {[%clk 0:02:57]} 11. Rab1 {[%clk 0:02:45]}  Nd4 {[%clk 0:02:49]} 12. b4 {[%clk 0:02:19]}  Nec6 {[%clk 0:02:47]} 13. b5 {[%clk 0:02:13]}  Ne7 {[%clk 0:02:44]} 14. a4 {[%clk 0:02:00]}  g5 {[%clk 0:02:29]} 15. f4 {[%clk 0:01:56]}  g4 {[%clk 0:02:29]} 16. Bxd4 {[%clk 0:01:48]}  cxd4 {[%clk 0:02:26]} 17. Nd1 {[%clk 0:01:30]}  h5 {[%clk 0:02:24]} 18. f5 {[%clk 0:01:26]}  Bh6 {[%clk 0:02:18]} 19. Qb2 {[%clk 0:01:21]}  e5 {[%clk 0:02:18]} 20. Nxd4 {[%clk 0:01:06]}  exd4 {[%clk 0:02:13]} 21. Qxd4 {[%clk 0:01:06]}  Rh7 {[%clk 0:02:06]} 22. Nc3 {[%clk 0:00:46]}  Qc7 {[%clk 0:02:03]} 23. f6 {[%clk 0:00:32]}  Ng6 {[%clk 0:01:59]} 24. Rf5 {[%clk 0:00:29]}  Ne5 {[%clk 0:01:54]} 25. Kf1 {[%clk 0:00:16]}  Bf8 {[%clk 0:01:33]} 26. Nd5 {[%clk 0:00:15]}  Qc5 {[%clk 0:01:29]} 27. Rxe5+ {[%clk 0:00:13]}  dxe5 {[%clk 0:01:29]} 28. Qxe5+ {[%clk 0:00:13]}  Kd8 {[%clk 0:01:27]} 29. Qf5 {[%clk 0:00:12]}  Rh6 {[%clk 0:01:24]} 30. e5 {[%clk 0:00:12]}  Bc8 {[%clk 0:01:14]} 31. Qf4 {[%clk 0:00:11]}  Be6 {[%clk 0:01:13]} 32. Ne3 {[%clk 0:00:08]}  Rc8 {[%clk 0:01:10]} 33. Bd5 {[%clk 0:00:07]}  Rg6 {[%clk 0:01:02]} 34. d4 {[%clk 0:00:06]}  Qa3 {[%clk 0:01:03]} 35. Bxe6 {[%clk 0:00:06]}  Qd3+ {[%clk 0:01:02]} 36. Kf2 {[%clk 0:00:05]}  fxe6 {[%clk 0:01:02]} 37. Rd1 {[%clk 0:00:03]}  Qb3 {[%clk 0:00:41]} 38. d5 {[%clk 0:00:04]}  Bh6 {[%clk 0:00:38]} 39. dxe6+ {[%clk 0:00:04]}  Ke8 {[%clk 0:00:37]} 40. Qd4 {[%clk 0:00:03]}  Bxe3+ {[%clk 0:00:35]} 41. Ke2 {[%clk 0:00:00]}  Bxd4 {[%clk 0:00:34]} 0-1